fUSD/lending_fUSD_20240803
["ID","MTS","AMOUNT","RATE_DAILY","PERIOD"]
[333995167,1722667847152,-500.0,0.00016438,2]
[333995168,1722667847162,-500.0,0.00016438,2]
[333995169,1722667847171,-500.0,0.00016438,2]
[333995170,1722667847181,-631.56,0.00016438,2]
[333995171,1722667847191,-500.0,0.00016438,2]
[333995172,1722667847201,-501.90424564,0.00016438,2]
[333995173,1722667847211,-500.0,0.00016438,2]
[333995174,1722667847220,-509.59497164,0.00016438,2]
[333995175,1722667847230,-500.0,0.00016438,2]
[333995176,1722667847239,-500.0,0.00016438,2]
[333995177,1722667847249,-230.75620514,0.00016438,2]
[333995178,1722667847259,-500.0,0.00016438,2]
[333995179,1722667847268,-500.0,0.00016438,2]
[333995180,1722667847280,-500.0,0.00016438,2]
[333995181,1722667847290,-500.0,0.00016438,2]
[333995182,1722667847300,-500.0,0.00016438,2]
[333995183,1722667847310,-500.0,0.00016438,2]
[333995184,1722667847320,-500.0,0.00016438,2]
[333995185,1722667847330,-500.0,0.00016438,2]
[333995186,1722667847340,-500.0,0.00016438,2]
[333995187,1722667847350,-273.86144833,0.00016438,2]
[333995188,1722667847359,-485.0,0.00016438,2]
[333995189,1722667847369,-500.0,0.00016438,2]
[333995190,1722667847379,-500.0,0.00016438,2]
[333995191,1722667847388,-292.07274951,0.00016438,2]
[333995192,1722667848075,-207.92725049,0.00016438,2]
[333995193,1722667848085,-242.01100153,0.00016438,2]
[333995194,1722667848105,-257.98899847,0.00016438,2]
[333995195,1722667848114,-406.90789414,0.00016438,2]
[333995196,1722667848124,-633.71,0.00016438,2]
[333995197,1722667848134,-500.0,0.00016438,2]
[333995198,1722667848143,-500.0,0.00016438,2]
[333995199,1722667848153,-419.56736413,0.00016438,2]
[333995200,1722667848164,-347.45929824,0.00016438,2]
[333995201,1722667848173,-186.06572502,0.00016438,2]
[333995202,1722667848190,-313.93427498,0.00016438,2]
[333995203,1722667848200,-500.0,0.00016438,2]
[333995204,1722667848210,-544.4,0.00016438,2]
[333995205,1722667848220,-501.73074005,0.00016438,2]
[333995206,1722667848230,-144.66166017,0.00016438,2]
[333995211,1722668353584,38317.0,0.00012,30]
[333995252,1722669038331,-692.74549868,0.00012,2]
[333995253,1722669038342,-500.0,0.00012,2]
[333995254,1722669038351,-488.32,0.00012667,2]
[333995255,1722669038361,-151.29,0.00013699,2]
[333995256,1722669038376,-4000.32154834,0.00013699,2]
[333995465,1722669040664,-2785.3099468,0.00013699,2]
[333995466,1722669040675,-449.21961428,0.00013699,2]
[333995683,1722669043089,-456.15,0.00013699,2]
[333995836,1722669044683,-14948.66067028,0.00013699,2]
[333995838,1722669044693,-35697.33254384,0.00013859,2]
[333995840,1722669044703,-1112.40214539,0.00013859,2]
[333995842,1722669044712,-321.7,0.00013973,2]
[333995844,1722669044722,-169.11,0.00013973,2]
[333995846,1722669044732,-156.08848934,0.00013979,2]
[333995848,1722669044741,-200.0,0.00014086,2]
[333995850,1722669044750,-531.81153519,0.00014261,2]
[333995852,1722669044760,-353.48041772,0.00014283,2]
[333995854,1722669044770,-162.89676018,0.00014283,2]
[333995856,1722669044779,-414.42088347,0.00014451,2]
[333995858,1722669044789,-164.23718751,0.00014451,2]
[333995860,1722669044798,-155.30539952,0.00014451,2]
[333995862,1722669044808,-188.63628821,0.00014519,2]
[333995864,1722669044818,-265.21397656,0.00014519,2]
[333995866,1722669044828,-476.52703085,0.00014519,2]
[333995868,1722669044837,-206.59146968,0.00014579,2]
[333995870,1722669044847,-202.71790408,0.00014579,2]
[333995871,1722669044857,-210.87847398,0.00014667,2]
[333995873,1722669044866,-155.0,0.00014667,2]
[333995875,1722669044876,-309.01921538,0.00014667,2]
[333995876,1722669044885,-1000.0,0.00014732,2]
[333995878,1722669044895,-270.32721242,0.00014776,2]
[333995880,1722669044904,-297.22909311,0.00014789,2]
[333995881,1722669044914,-174.99716612,0.00014789,2]
[333995883,1722669044924,-205.75981917,0.00014789,2]
[333995885,1722669044934,-182.64,0.00014889,2]
[333995886,1722669044944,-488.32,0.00014931,2]
[333995888,1722669044954,-3976.46597667,0.00014988,2]
[333995889,1722669044965,-6725.14734602,0.00015,7]
[333995891,1722669044975,-37560.83272271,0.000152,2]
[333995893,1722669044985,-2561.436,0.000152,2]
[333995894,1722669044994,-538.01367912,0.00015263,2]
[333995896,1722669045004,-167.51708991,0.00015263,2]
[333995898,1722669045016,-150.0,0.00015263,2]
[333995900,1722669045026,-538.01367912,0.0001528,2]
[333995901,1722669045036,-167.51708991,0.0001528,2]
[333995903,1722669045046,-538.01367912,0.00015297,2]
[333995931,1722669045401,-167.51708991,0.00015297,2]
[333995933,1722669045423,-538.01367912,0.00015314,2]
[333995935,1722669045433,-167.51708991,0.00015314,2]
[333995937,1722669045443,-153.414,0.00015314,2]
[333995939,1722669045452,-538.01367912,0.00015332,2]
[333995940,1722669045462,-167.51708991,0.00015332,2]
[333995942,1722669045471,-538.01367912,0.00015349,2]
[333995944,1722669045480,-167.51708991,0.00015349,2]
[333995946,1722669045490,-538.01367912,0.00015366,2]
[333995947,1722669045501,-167.51708991,0.00015366,2]
[333995949,1722669045511,-538.01367912,0.00015383,2]
[333995951,1722669045521,-167.51708991,0.00015383,2]
[333995953,1722669045532,-538.01367912,0.000154,2]
[333995955,1722669045543,-167.51708991,0.000154,2]
[333995957,1722669045553,-538.01367912,0.00015417,2]
[333995959,1722669045563,-167.51708991,0.00015417,2]
[333995960,1722669045573,-538.01367912,0.00015434,2]
[333995962,1722669045583,-167.51708991,0.00015434,2]
[333995964,1722669045593,-538.01367912,0.00015451,2]
[333995966,1722669045603,-167.51708991,0.00015451,2]
[333995968,1722669045613,-538.01367912,0.00015469,2]
[333995969,1722669045623,-167.51708991,0.00015469,2]
[333995971,1722669045633,-538.01367912,0.00015486,2]
[333995973,1722669045644,-167.51708991,0.00015486,2]
[333995975,1722669045654,-538.01367912,0.00015503,2]
[333995977,1722669045664,-167.51708991,0.00015503,2]
[333995978,1722669045674,-538.01367912,0.0001552,2]
[333995980,1722669045684,-167.51708991,0.0001552,2]
[333995982,1722669045694,-538.01367912,0.00015537,2]
[333995984,1722669045705,-167.51708991,0.00015537,2]
[333995985,1722669045714,-283.79487635,0.00015554,2]
[333996084,1722669046793,-749.37644773,0.00015543,2]
[333996273,1722669293693,155.0,9e-05,2]
[333996275,1722669326974,692.74549868,9e-05,2]
[333996276,1722669442969,465.89558699,9e-05,2]
[333996338,1722670232268,-4016.59568407,0.0001,2]
[333996339,1722670232280,-1163.48703992,0.0001,2]
[333996340,1722670232291,-719.4241955,0.0001,2]
[333996341,1722670232303,-619.65012665,0.0001,2]
[333996342,1722670232349,-1234.00495919,0.0001,2]
[333996343,1722670232359,-947.50118713,0.00010809,2]
[333996344,1722670232370,-301.01801999,0.00010909,2]
[333996345,1722670232380,-159.15635676,0.00010909,2]
[333996346,1722670232389,-950.32653485,0.00010909,2]
[333996347,1722670232399,-150.0,0.00010999,2]
[333996348,1722670232408,-250.0,0.00011,2]
[333996349,1722670232418,-7261.39470006,0.00011,2]
[333996350,1722670232430,-5687.19154647,0.00011,2]
[333996351,1722670232449,-365.35210606,0.00011,2]
[333996352,1722670232460,-3094.2,0.00011,2]
[333996353,1722670232472,-939.2,0.00011,2]
[333996354,1722670232483,-11038.91143297,0.00011,2]
[333996355,1722670232495,-16302.71323719,0.00011,2]
[333996356,1722670232506,-4633.01478385,0.00011,2]
[333996357,1722670232517,-1956.37593354,0.00011,2]
[333996358,1722670232557,-3137.90632761,0.00011,2]
[333996359,1722670232570,-455.38625868,0.00011,2]
[333996360,1722670232582,-361.36554768,0.00011,2]
[333996361,1722670232592,-7887.55159708,0.00011,2]
[333996363,1722670232603,-5439.96,0.00011,2]
[333996365,1722670232614,-543.83019264,0.00011,2]
[333996367,1722670232625,-1522.29153482,0.00011,2]
[333996380,1722670232716,-92699.69908955,0.00011,2]
[333996383,1722670232730,-5809.4321742,0.00011,2]
[333996410,1722670238974,-162.31762454,0.00010909,2]
[333996413,1722670238985,-16841.08537617,0.00011,2]
[333996415,1722670238997,-7488.22927457,0.00011,2]
[333996417,1722670239011,-437.42712482,0.00011,2]
[333996419,1722670239023,-675.54813812,0.00011,2]
[333996421,1722670239035,-338.22,0.00011,2]
[333996424,1722670239048,-394.96257578,0.00011,2]
[333996426,1722670239060,-29740.1200001,0.00011,2]
[333996428,1722670239073,-28138.33616414,0.00011,2]
[333996430,1722670239084,-1449.42905946,0.00011076,2]
[333996432,1722670239094,-535.33058342,0.00011176,2]
[333996434,1722670239103,-236.5,0.00012,2]
[333996436,1722670239113,-1449.42905937,0.0001233,2]
[333996437,1722670239123,-531.72,0.00012728,2]
[333996439,1722670239134,-250.0,0.00013,2]
[333996441,1722670239144,-10330.51159727,0.00013378,2]
[333996443,1722670239154,-3976.46597667,0.00013398,2]
[333996445,1722670239164,-1449.42905937,0.00013585,2]
[333996446,1722670239174,-531.81153519,0.00013648,2]
[333996448,1722670239183,-476.52703085,0.00013698,2]
[333996450,1722670239193,-307.11261332,0.00013698,2]
[333996452,1722670239204,-274.72065757,0.00013699,2]
[333996453,1722670239213,-432.28708029,0.00013699,2]
[333996455,1722670239223,-499.99,0.0001372,2]
[333996457,1722670239233,-155.30539952,0.0001372,2]
[333996458,1722670239243,-294.83088482,0.0001372,2]
[333996460,1722670239253,-299.65011187,0.00013789,2]
[333996462,1722670239263,-512.87,0.00013989,2]
[333996464,1722670239273,-1622.19894296,0.00013989,2]
[333996465,1722670239283,-4645.77,0.00013996,2]
[333996467,1722670239293,-347.62619378,0.00014086,2]
[333996469,1722670239303,-20866.23815441,0.00014183,2]
[333996471,1722670239315,-1228.4993239,0.00014183,2]
[333996473,1722670239328,-795.2682055,0.00014183,2]
[333996474,1722670239339,-969.99431619,0.00014183,2]
[333996476,1722670239348,-37.38865819,0.00014247,2]
[333996478,1722670239360,-819.17134181,0.00014247,2]
[333996480,1722670239370,-196.9568717,0.00014283,2]
[333996482,1722670239379,-200.0,0.00014302,2]
[333996483,1722670239389,-788.83,0.00014317,2]
[333996485,1722670239399,-150.85,0.00014318,2]
[333996487,1722670239409,-153.414,0.00014318,2]
[333996489,1722670239419,-250.0,0.00014318,2]
[333996491,1722670239429,-250.0,0.00014392,2]
[333996492,1722670239439,-336.02,0.00014393,2]
[333996494,1722670239450,-1413.30498106,0.00014524,2]
[333996496,1722670239459,-800.0,0.00014611,2]
[333996498,1722670239470,-2000.0,0.00014624,2]
[333996499,1722670239480,-161.19,0.00014669,2]
[333996501,1722670239491,-418.82809261,0.00014776,2]
[333996503,1722670239500,-239.00007982,0.00014789,2]
[333996505,1722670239513,-343.72305358,0.00014789,2]
[333996507,1722670239522,-600.23497476,0.00014789,2]
[333996509,1722670239532,-13.7735008,0.00014839,2]
[333996511,1722670239543,-343.85707999,0.00014839,2]
[333996513,1722670239555,-1091.79847858,0.00014839,2]
[333996515,1722670239565,-200.0,0.0001493,2]
[333996516,1722670239577,-531.72,0.00014992,2]
[333996518,1722670239587,-294.73371643,0.00015,2]
[333996520,1722670239597,-165.88,0.00015028,2]
[333996522,1722670239607,-153.414,0.0001507,2]
[333996524,1722670239616,-166.51,0.00015085,2]
[333996525,1722670239626,-527.25340554,0.00015263,2]
[333996527,1722670239635,-165.84191901,0.00015263,2]
[333996529,1722670239645,-150.0,0.00015263,2]
[333996531,1722670239655,-527.25340554,0.0001528,2]
[333996532,1722670239664,-165.84191901,0.0001528,2]
[333996534,1722670239674,-1413.30498106,0.00015292,2]
[333996536,1722670239684,-527.25340554,0.00015297,2]
[333996538,1722670239695,-165.84191901,0.00015297,2]
[333996540,1722670239705,-527.25340554,0.00015314,2]
[333996542,1722670239716,-165.84191901,0.00015314,2]
[333996543,1722670239729,-17.11200804,0.00015332,2]
[333996624,1722670240514,-170.73305357,0.0001372,2]
[333996627,1722670240525,-454.19419225,0.00013999,2]
[333996631,1722670240535,-510.1413975,0.00015332,2]
[333996634,1722670240545,-165.84191901,0.00015332,2]
[333996637,1722670240555,-527.25340554,0.00015349,2]
[333996640,1722670240565,-165.84191901,0.00015349,2]
[333996643,1722670240578,-527.25340554,0.00015366,2]
[333996646,1722670240588,-165.84191901,0.00015366,2]
[333996649,1722670240597,-527.25340554,0.00015383,2]
[333996652,1722670240607,-165.84191901,0.00015383,2]
[333996655,1722670240617,-527.25340554,0.000154,2]
[333996658,1722670240626,-165.84191901,0.000154,2]
[333996661,1722670240636,-527.25340554,0.00015417,2]
[333996664,1722670240646,-165.84191901,0.00015417,2]
[333996667,1722670240657,-159.00731988,0.00015434,2]
[333996672,1722670240668,-368.24608566,0.00015434,2]
[333996674,1722670240678,-165.84191901,0.00015434,2]
[333996677,1722670240687,-527.25340554,0.00015451,2]
[333996680,1722670240696,-165.84191901,0.00015451,2]
[333996683,1722670240708,-96.5426902,0.00015469,2]
[333996686,1722670240722,-430.71071534,0.00015469,2]
[333996688,1722670240732,-165.84191901,0.00015469,2]
[333996690,1722670240742,-311.10394202,0.00015486,2]
[333996692,1722670240755,-216.14946352,0.00015486,2]
[333996694,1722670240768,-165.84191901,0.00015486,2]
[333996696,1722670240778,-527.25340554,0.00015503,2]
[333996698,1722670240789,-165.84191901,0.00015503,2]
[333996700,1722670240800,-385.23969268,0.0001552,2]
[333996710,1722670240884,-142.01371286,0.0001552,2]
[333996712,1722670240893,-165.84191901,0.0001552,2]
[333996714,1722670240904,-527.25340554,0.00015537,2]
[333996716,1722670240914,-165.84191901,0.00015537,2]
[333996718,1722670240924,-1000.0,0.00015543,2]
[333996720,1722670240933,-2818.64051895,0.00015543,2]
[333996722,1722670240943,-953.91595,0.00015554,2]
[333996724,1722670240953,-527.25340554,0.00015554,2]
[333996726,1722670240963,-165.84191901,0.00015554,2]
[333996728,1722670240972,-527.25340554,0.00015571,2]
[333996730,1722670240982,-165.84191901,0.00015571,2]
[333996732,1722670240992,-527.25340554,0.00015588,2]
[333996734,1722670241001,-165.84191901,0.00015588,2]
[333996736,1722670241011,-527.25340554,0.00015606,2]
[333996738,1722670241022,-165.84191901,0.00015606,2]
[333996740,1722670241032,-527.25340554,0.00015623,2]
[333996742,1722670241042,-165.84191901,0.00015623,2]
[333996744,1722670241052,-527.25340554,0.0001564,2]
[333996746,1722670241063,-165.84191901,0.0001564,2]
[333996748,1722670241073,-527.25340554,0.00015657,2]
[333996750,1722670241083,-165.84191901,0.00015657,2]
[333996752,1722670241092,-527.25340554,0.00015674,2]
[333996754,1722670241102,-165.84191901,0.00015674,2]
[333996756,1722670241111,-527.25340554,0.00015691,2]
[333996758,1722670241121,-165.84191901,0.00015691,2]
[333996760,1722670241130,-162.3792177,0.000157,2]
[333996762,1722670241140,-527.25340554,0.00015708,2]
[333996764,1722670241149,-165.84191901,0.00015708,2]
[333996766,1722670241159,-527.25340554,0.00015726,2]
[333996768,1722670241169,-165.84191901,0.00015726,2]
[333996770,1722670241179,-527.25340554,0.00015743,2]
[333996772,1722670241188,-165.84191901,0.00015743,2]
[333996774,1722670241199,-527.25340554,0.0001576,2]
[333996776,1722670241209,-165.84191901,0.0001576,2]
[333996778,1722670241219,-527.25340554,0.00015777,2]
[333996780,1722670241228,-165.84191901,0.00015777,2]
[333996782,1722670241239,-527.25340554,0.00015794,2]
[333996784,1722670241248,-165.84191901,0.00015794,2]
[333996786,1722670241258,-527.25340554,0.00015811,2]
[333996788,1722670241268,-165.84191901,0.00015811,2]
[333996790,1722670241277,-504.43966201,0.00015828,2]
[333996800,1722670241359,-22.81374353,0.00015828,2]
[333996803,1722670241375,-165.84191901,0.00015828,2]
[333996804,1722670241385,-527.25340554,0.00015845,2]
[333996806,1722670241395,-165.84191901,0.00015845,2]
[333996808,1722670241404,-527.25340554,0.00015863,2]
[333996811,1722670241416,-165.84191901,0.00015863,2]
[333996813,1722670241425,-122.98795887,0.0001587,2]
[333996815,1722670241436,-855.32605438,0.0001587,2]
[333996817,1722670241446,-527.25340554,0.0001588,2]
[333996819,1722670241458,-165.84191901,0.0001588,2]
[333996821,1722670241470,-527.25340554,0.00015897,2]
[333996824,1722670241483,-165.84191901,0.00015897,2]
[333996826,1722670241494,-249.78510682,0.00015897,2]
[333996828,1722670241506,-548.91744092,0.00015897,2]
[333996831,1722670241521,-79.17796947,0.00015897,2]
[333996833,1722670241532,-153.414,0.00015901,2]
[333996835,1722670241543,-1073.73542888,0.00015912,2]
[333996837,1722670241555,-527.25340554,0.00015914,2]
[333996839,1722670241565,-165.84191901,0.00015914,2]
[333996841,1722670241577,-527.25340554,0.00015931,2]
[333996843,1722670241587,-165.84191901,0.00015931,2]
[333996846,1722670241600,-527.25340554,0.00015948,2]
[333996848,1722670241611,-165.84191901,0.00015948,2]
[333996850,1722670241623,-1135.0,0.00015958,2]
[333996852,1722670241633,-527.25340554,0.00015965,2]
[333996854,1722670241644,-165.84191901,0.00015965,2]
[333996857,1722670241654,-527.25340554,0.00015982,2]
[333996859,1722670241666,-165.84191901,0.00015982,2]
[333996861,1722670241677,-192.11793782,0.00015999,2]
[333996863,1722670241688,-527.25340554,0.00016,2]
[333996865,1722670241699,-165.84191901,0.00016,2]
[333996867,1722670241710,-739.55433187,0.00016,16]
[333996870,1722670241729,-260.44566813,0.00016,16]
[333996872,1722670241742,-150.0,0.00016,2]
[333996874,1722670241754,-460.59520187,0.00016017,2]
[333996930,1722670243615,-196.9568717,0.00014283,2]
[333996931,1722670243625,-66.65820367,0.00016017,2]
[333996932,1722670243635,-165.84191901,0.00016017,2]
[333996933,1722670243646,-165.36567453,0.00016033,2]
[333996934,1722670243657,-527.25340554,0.00016034,2]
[333996935,1722670243668,-165.84191901,0.00016034,2]
[333996936,1722670243680,-527.25340554,0.00016051,2]
[333996937,1722670243690,-165.84191901,0.00016051,2]
[333996938,1722670243701,-1413.30498106,0.0001606,2]
[333996939,1722670243712,-527.25340554,0.00016068,2]
[333996940,1722670243726,-165.84191901,0.00016068,2]
[333996941,1722670243736,-527.25340554,0.00016085,2]
[333996942,1722670243747,-165.84191901,0.00016085,2]
[333996943,1722670243756,-1449.42905937,0.00016093,2]
[333996944,1722670243767,-527.25340554,0.00016102,2]
[333996945,1722670243779,-165.84191901,0.00016102,2]
[333996946,1722670243790,-527.25340554,0.0001612,2]
[333996947,1722670243803,-165.84191901,0.0001612,2]
[333996948,1722670243813,-527.25340554,0.00016137,2]
[333996949,1722670243824,-165.84191901,0.00016137,2]
[333996950,1722670243836,-527.25340554,0.00016154,2]
[333996951,1722670243848,-165.84191901,0.00016154,2]
[333996952,1722670243861,-527.25340554,0.00016171,2]
[333996953,1722670243872,-165.84191901,0.00016171,2]
[333996954,1722670243882,-527.25340554,0.00016188,2]
[333996955,1722670243893,-165.84191901,0.00016188,2]
[333996956,1722670243903,-527.25340554,0.00016205,2]
[333996957,1722670243914,-165.84191901,0.00016205,2]
[333996958,1722670243925,-527.25340554,0.00016222,2]
[333996959,1722670243935,-165.84191901,0.00016222,2]
[333996960,1722670243945,-359.08278976,0.00016232,2]
[333996961,1722670243956,-388.49244143,0.00016232,2]
[333996962,1722670243966,-155.0,0.00016232,2]
[333996963,1722670243977,-527.25340554,0.00016239,2]
[333996964,1722670243996,-165.84191901,0.00016239,2]
[333996965,1722670244007,-527.25340554,0.00016257,2]
[333996966,1722670244019,-165.84191901,0.00016257,2]
[333996967,1722670244030,-300.0,0.00016268,2]
[333996968,1722670244041,-527.25340554,0.00016274,2]
[333996969,1722670244051,-165.84191901,0.00016274,2]
[333996970,1722670244062,-527.25340554,0.00016291,2]
[333996971,1722670244073,-165.84191901,0.00016291,2]
[333996972,1722670244083,-527.25340554,0.00016308,2]
[333996973,1722670244094,-165.84191901,0.00016308,2]
[333996974,1722670244104,-527.25340554,0.00016325,2]
[333996975,1722670244115,-165.84191901,0.00016325,2]
[333996976,1722670244125,-883.86743112,0.00016338,2]
[333996977,1722670244136,-1961.5294,0.00016338,2]
[333996978,1722670244147,-7500.0,0.00016338,2]
[333996979,1722670244161,-527.25340554,0.00016342,2]
[333996980,1722670244171,-165.84191901,0.00016342,2]
[333996981,1722670244181,-527.25340554,0.00016359,2]
[333996982,1722670244191,-165.84191901,0.00016359,2]
[333996983,1722670244202,-527.25340554,0.00016376,2]
[333996984,1722670244213,-165.84191901,0.00016376,2]
[333996985,1722670244223,-527.25340554,0.00016394,2]
[333996986,1722670244233,-165.84191901,0.00016394,2]
[333996987,1722670244243,-527.25340554,0.00016411,2]
[333996988,1722670244253,-165.84191901,0.00016411,2]
[333996989,1722670244263,-527.25340554,0.00016428,2]
[333996990,1722670244273,-165.84191901,0.00016428,2]
[333996991,1722670244283,-8337.82524033,0.00016428,2]
[333996992,1722670244803,-17720.0,0.00016428,2]
[333996993,1722670244914,-2600.79910379,0.00016428,2]
[333996997,1722670247639,-7032.29762668,0.00016428,2]
[333996998,1722670247649,-153.54,0.00016428,2]
[333996999,1722670247658,-800.0,0.00016438,2]
[333997000,1722670247668,-500.0,0.00016438,2]
[333997001,1722670247678,-501.65873819,0.00016438,2]
[333997002,1722670247688,-545.15813193,0.00016438,2]
[333997003,1722670247697,-501.28078973,0.00016438,2]
[333997004,1722670247708,-500.0,0.00016438,2]
[333997005,1722670247718,-500.73294538,0.00016438,2]
[333997006,1722670247733,-500.90130481,0.00016438,2]
[333997007,1722670247742,-500.0,0.00016438,2]
[333997008,1722670247752,-501.90424564,0.00016438,2]
[333997009,1722670247763,-500.0,0.00016438,2]
[333997010,1722670247773,-500.0,0.00016438,2]
[333997011,1722670247782,-500.0,0.00016438,2]
[333997012,1722670247792,-500.0,0.00016438,2]
[333997013,1722670247804,-502.38769871,0.00016438,2]
[333997014,1722670247814,-500.0,0.00016438,2]
[333997015,1722670247823,-500.66017482,0.00016438,2]
[333997016,1722670247834,-500.0,0.00016438,2]
[333997017,1722670247843,-500.0,0.00016438,2]
[333997018,1722670247853,-500.0,0.00016438,2]
[333997019,1722670247863,-500.0,0.00016438,2]
[333997020,1722670247874,-500.0,0.00016438,2]
[333997021,1722670247883,-500.0,0.00016438,2]
[333997022,1722670247893,-501.1166708,0.00016438,2]
[333997023,1722670247903,-500.0,0.00016438,2]
[333997024,1722670247913,-500.0,0.00016438,2]
[333997025,1722670247922,-500.0,0.00016438,2]
[333997026,1722670247932,-500.0,0.00016438,2]
[333997027,1722670247943,-500.0,0.00016438,2]
[333997028,1722670247953,-500.0,0.00016438,2]
[333997029,1722670247963,-500.0,0.00016438,2]
[333997030,1722670247973,-500.0,0.00016438,2]
[333997031,1722670247983,-500.0,0.00016438,2]
[333997032,1722670247993,-500.0,0.00016438,2]
[333997033,1722670248002,-500.0,0.00016438,2]
[333997034,1722670248012,-500.0,0.00016438,2]
[333997035,1722670248022,-500.0,0.00016438,2]
[333997036,1722670248032,-500.0,0.00016438,2]
[333997037,1722670248041,-500.0,0.00016438,2]
[333997038,1722670248051,-500.0,0.00016438,2]
[333997039,1722670248061,-500.0,0.00016438,2]
[333997040,1722670248072,-500.0,0.00016438,2]
[333997041,1722670248083,-501.15528271,0.00016438,2]
[333997042,1722670248093,-500.0,0.00016438,2]
[333997043,1722670248103,-837.79,0.00016438,2]
[333997044,1722670248113,-500.0,0.00016438,2]
[333997045,1722670248123,-500.0,0.00016438,2]
[333997046,1722670248134,-501.44720136,0.00016438,2]
[333997047,1722670248144,-500.0,0.00016438,2]
[333997048,1722670248155,-500.0,0.00016438,2]
[333997049,1722670248230,-500.0,0.00016438,2]
[333997050,1722670248240,-500.0,0.00016438,2]
[333997051,1722670248250,-500.0,0.00016438,2]
[333997052,1722670248260,-500.0,0.00016438,2]
[333997053,1722670248271,-500.0,0.00016438,2]
[333997054,1722670248281,-500.0,0.00016438,2]
[333997055,1722670248290,-500.0,0.00016438,2]
[333997056,1722670248300,-500.0,0.00016438,2]
[333997057,1722670248310,-500.0,0.00016438,2]
[333997058,1722670248319,-500.0,0.00016438,2]
[333997059,1722670248329,-951.73,0.00016438,2]
[333997060,1722670248339,-355.69610975,0.00016438,2]
[333997061,1722670248349,-500.0,0.00016438,2]
[333997062,1722670248359,-500.0,0.00016438,2]
[333997063,1722670248368,-500.0,0.00016438,2]
[333997064,1722670248378,-774.79,0.00016438,2]
[333997065,1722670248388,-503.07357327,0.00016438,2]
[333997066,1722670248397,-500.0,0.00016438,2]
[333997067,1722670248407,-500.0,0.00016438,2]
[333997068,1722670248416,-500.0,0.00016438,2]
[333997069,1722670248426,-500.0,0.00016438,2]
[333997070,1722670248435,-500.0,0.00016438,2]
[333997071,1722670248445,-500.0,0.00016438,2]
[333997072,1722670248454,-500.0,0.00016438,2]
[333997073,1722670248464,-500.0,0.00016438,2]
[333997074,1722670248474,-519.21626713,0.00016438,2]
[333997075,1722670248484,-261.57008568,0.00016438,2]
[333997076,1722670248494,-500.0,0.00016438,2]
[333997077,1722670248504,-500.0,0.00016438,2]
[333997078,1722670248513,-500.0,0.00016438,2]
[333997079,1722670248523,-562.63374562,0.00016438,2]
[333997080,1722670248532,-500.0,0.00016438,2]
[333997081,1722670248542,-500.0,0.00016438,2]
[333997082,1722670248552,-500.0,0.00016438,2]
[333997083,1722670248562,-500.0,0.00016438,2]
[333997084,1722670248572,-500.0,0.00016438,2]
[333997085,1722670248581,-500.0,0.00016438,2]
[333997086,1722670248591,-508.94,0.00016438,2]
[333997087,1722670248600,-500.0,0.00016438,2]
[333997088,1722670248610,-500.0,0.00016438,2]
[333997089,1722670248619,-500.0,0.00016438,2]
[333997090,1722670248629,-500.0,0.00016438,2]
[333997091,1722670248639,-500.0,0.00016438,2]
[333997092,1722670248648,-500.0,0.00016438,2]
[333997093,1722670248658,-500.0,0.00016438,2]
[333997094,1722670248667,-500.0,0.00016438,2]
[333997095,1722670248677,-500.0,0.00016438,2]
[333997096,1722670248686,-500.72648302,0.00016438,2]
[333997097,1722670248695,-500.0,0.00016438,2]
[333997098,1722670248705,-530.35,0.00016438,2]
[333997099,1722670248714,-500.0,0.00016438,2]
[333997100,1722670248728,-500.0,0.00016438,2]
[333997101,1722670248738,-500.0,0.00016438,2]
[333997102,1722670248747,-500.0,0.00016438,2]
[333997103,1722670248757,-509.93099446,0.00016438,2]
[333997104,1722670248767,-500.0,0.00016438,2]